fUST/lending_fUST_20250827
["ID","MTS","AMOUNT","RATE_DAILY","PERIOD"]
[381607989,1756295498151,-544.18,0.00023013,2]
[381607990,1756295498161,-605.81,0.00023013,2]
[381607991,1756295498171,-480.0,0.00023013,2]
[381607992,1756295498181,-480.0,0.00023013,2]
[381607993,1756295498191,-486.23,0.00023013,2]
[381607994,1756295498201,-480.0,0.00023013,2]
[381607995,1756295498211,-480.0,0.00023013,2]
[381607996,1756295498220,-572.5,0.00023013,2]
[381607997,1756295498230,-1511.66,0.00023013,2]
[381607998,1756295498240,-1734.3,0.00023013,2]
[381607999,1756295498249,-3755.94,0.00023013,2]
[381608000,1756295498260,-480.0,0.00023013,2]
[381608001,1756295498270,-831.34,0.00023013,2]
[381608002,1756295498279,-480.0,0.00023013,2]
[381608003,1756295498289,-480.0,0.00023013,2]
[381608004,1756295498299,-707.25,0.00023013,2]
[381608005,1756295498309,-480.0,0.00023013,2]
[381608006,1756295498319,-2885.3,0.00023013,2]
[381608007,1756295498329,-480.0,0.00023013,2]
[381608008,1756295498339,-480.0,0.00023013,2]
[381608009,1756295498348,-667.09,0.00023013,2]
[381608010,1756295498358,-480.0,0.00023013,2]
[381608011,1756295498367,-480.0,0.00023013,2]
[381608012,1756295498378,-480.0,0.00023013,2]
[381608013,1756295498387,-1275.32,0.00023013,2]
[381608014,1756295498396,-480.0,0.00023013,2]
[381608015,1756295498407,-562.26,0.00023013,2]
[381608016,1756295498416,-489.14,0.00023013,2]
[381608017,1756295498426,-3844.16,0.00023013,2]
[381608018,1756295498436,-480.0,0.00023013,2]
[381608019,1756295498447,-1682.7,0.00023013,2]
[381608020,1756295498456,-1992.53,0.00023013,2]
[381608021,1756295498466,-480.0,0.00023013,2]
[381608022,1756295498475,-480.0,0.00023013,2]
[381608023,1756295498485,-1281.38,0.00023013,2]
[381608024,1756295498495,-480.0,0.00023013,2]
[381608025,1756295498504,-480.0,0.00023013,2]
[381608026,1756295498514,-480.0,0.00023013,2]
[381608027,1756295498524,-833.25,0.00023013,2]
[381608028,1756295498534,-480.0,0.00023013,2]
[381608029,1756295498543,-480.0,0.00023013,2]
[381608030,1756295498553,-480.0,0.00023013,2]
[381608031,1756295498563,-480.0,0.00023013,2]
[381608032,1756295498573,-480.0,0.00023013,2]
[381608033,1756295498583,-480.0,0.00023013,2]
[381608034,1756295498592,-480.0,0.00023013,2]
[381608035,1756295498602,-480.0,0.00023013,2]
[381608036,1756295498612,-480.0,0.00023013,2]
[381608037,1756295498622,-480.0,0.00023013,2]
[381608038,1756295498632,-480.0,0.00023013,2]
[381608039,1756295498642,-480.0,0.00023013,2]
[381608040,1756295498652,-480.0,0.00023013,2]
[381608041,1756295498662,-480.0,0.00023013,2]
[381608042,1756295498672,-824.64,0.00023013,2]
[381608043,1756295498681,-1267.55,0.00023013,2]
[381608044,1756295498691,-934.3,0.00023013,2]
[381608045,1756295498701,-1138.38,0.00023013,2]
[381608046,1756295498712,-495.31,0.00023013,2]
[381608048,1756295498722,-480.0,0.00023013,2]
[381608049,1756295498732,-480.0,0.00023013,2]
[381608051,1756295498742,-480.0,0.00023013,2]
[381608052,1756295498752,-776.73,0.00023013,2]
[381608053,1756295498762,-480.0,0.00023013,2]
[381608054,1756295498771,-480.0,0.00023013,2]
[381608055,1756295498781,-480.0,0.00023013,2]
[381608056,1756295498791,-480.0,0.00023013,2]
[381608057,1756295498801,-480.0,0.00023013,2]
[381608058,1756295498811,-557.28,0.00023013,2]
[381608059,1756295498820,-535.56,0.00023013,2]
[381608060,1756295498830,-480.0,0.00023013,2]
[381608061,1756295498839,-480.0,0.00023013,2]
[381608062,1756295498853,-639.28,0.00023013,2]
[381608063,1756295498863,-480.0,0.00023013,2]
[381608064,1756295498872,-480.0,0.00023013,2]
[381608065,1756295498882,-480.0,0.00023013,2]
[381608066,1756295498892,-1717.2,0.00023013,2]
[381608067,1756295498902,-480.0,0.00023013,2]
[381608068,1756295498911,-2626.17,0.00023013,2]
[381608069,1756295498923,-484.63,0.00023013,2]
[381608070,1756295498932,-480.0,0.00023013,2]
[381608071,1756295498942,-932.54,0.00023013,2]
[381608072,1756295498953,-717.77,0.00023013,2]
[381608073,1756295498964,-1227.94,0.00023013,2]
[381608074,1756295498974,-607.71,0.00023013,2]
[381608075,1756295498984,-480.0,0.00023013,2]
[381608076,1756295498994,-5360.08,0.00023013,2]
[381608077,1756295499006,-636.41,0.00023013,2]
[381608078,1756295499015,-7837.73,0.00023013,2]
[381608079,1756295499025,-480.0,0.00023013,2]
[381608080,1756295499036,-525.03,0.00023013,2]
[381608081,1756295499047,-784.27,0.00023013,2]
[381608082,1756295499056,-974.32,0.00023013,2]
[381608083,1756295499066,-480.0,0.00023013,2]
[381608084,1756295499076,-480.0,0.00023013,2]
[381608085,1756295499086,-480.0,0.00023013,2]
[381608086,1756295499097,-2604.37,0.00023013,2]
[381608087,1756295499107,-480.0,0.00023013,2]
[381608088,1756295499117,-480.0,0.00023013,2]
[381608089,1756295499129,-480.0,0.00023013,2]
[381608090,1756295499139,-480.0,0.00023013,2]
[381608091,1756295499149,-480.0,0.00023013,2]
[381608092,1756295499159,-486.44,0.00023013,2]
[381608093,1756295499169,-480.0,0.00023013,2]
[381608094,1756295499179,-403.60220934,0.00023013,2]
[381608095,1756295499189,-1424.05,0.00023013,2]
[381608096,1756295499348,-480.0,0.00023013,2]
[381608097,1756295499359,-480.0,0.00023013,2]
[381608098,1756295499368,-850.03,0.00023013,2]
[381608099,1756295499378,-480.0,0.00023013,2]
[381608100,1756295499388,-480.0,0.00023013,2]
[381608101,1756295499399,-480.0,0.00023013,2]
[381608102,1756295499409,-480.0,0.00023013,2]
[381608103,1756295499420,-480.0,0.00023013,2]
[381608104,1756295499432,-2434.53,0.00023013,2]
[381608105,1756295499441,-512.47,0.00023013,2]
[381608106,1756295499451,-480.0,0.00023013,2]
[381608107,1756295499460,-1080.79,0.00023013,2]
[381608108,1756295499470,-753.46,0.00023013,2]
[381608109,1756295499481,-527.3,0.00023013,2]
[381608110,1756295499491,-480.0,0.00023013,2]
[381608111,1756295499501,-480.0,0.00023013,2]
[381608112,1756295499513,-1150.08,0.00023013,2]
[381608113,1756295499523,-480.0,0.00023013,2]
[381608114,1756295499532,-480.0,0.00023013,2]
[381608115,1756295499545,-480.0,0.00023013,2]
[381608116,1756295499556,-480.0,0.00023013,2]
[381608117,1756295499566,-716.6,0.00023013,2]
[381608118,1756295499576,-480.0,0.00023013,2]
[381608119,1756295499585,-480.0,0.00023013,2]
[381608120,1756295499594,-480.0,0.00023013,2]
[381608121,1756295499603,-480.0,0.00023013,2]
[381608122,1756295499614,-480.0,0.00023013,2]
[381608123,1756295499624,-480.0,0.00023013,2]
[381608124,1756295499634,-480.0,0.00023013,2]
[381608125,1756295499644,-799.46,0.00023013,2]
[381608126,1756295499653,-528.16,0.00023013,2]
[381608127,1756295499663,-480.0,0.00023013,2]
[381608128,1756295499675,-5059.84,0.00023013,2]
[381608129,1756295499684,-480.0,0.00023013,2]
[381608130,1756295499694,-518.25,0.00023013,2]
[381608131,1756295499704,-582.84,0.00023013,2]
[381608132,1756295499715,-556.45,0.00023013,2]
[381608133,1756295499726,-1272.66,0.00023013,2]
[381608134,1756295499736,-684.68,0.00023013,2]
[381608135,1756295499745,-480.0,0.00023013,2]
[381608136,1756295499755,-480.0,0.00023013,2]
[381608137,1756295499765,-2968.96,0.00023013,2]
[381608138,1756295499775,-2500.0,0.00023064,2]
[381608139,1756295499784,-2500.0,0.00023064,2]
[381608140,1756295499793,-2500.0,0.00023064,2]
[381608141,1756295499803,-2500.0,0.00023064,2]
[381608142,1756295499812,-1500.0,0.00023068,2]
[381608143,1756295499822,-1500.0,0.00023068,2]
[381608144,1756295499832,-1500.0,0.00023068,2]
[381608145,1756295499842,-330.63040537,0.00023068,2]
[381608146,1756295499857,-1500.0,0.00023068,2]
[381608147,1756295499866,-1510.45820748,0.00023068,2]
[381608148,1756295499876,-1500.0,0.00023068,2]
[381608149,1756295499885,-1058.31373769,0.00023068,2]
[381608150,1756295499896,-347.35570464,0.00023068,2]
[381608151,1756295499905,-506.92283959,0.00023068,2]
[381608152,1756295499914,-1000.0,0.00023068,2]
[381608153,1756295499924,-681.72219964,0.00023068,2]
[381608154,1756295499934,-1500.0,0.00023068,2]
[381608155,1756295499944,-1000.0,0.00023068,2]
[381608156,1756295499953,-153.0,0.00023245,2]
[381608157,1756295499962,-153.0,0.00023245,2]
[381608158,1756295499971,-153.0,0.00023245,2]
[381608159,1756295499980,-153.0,0.00023245,2]
[381608160,1756295499991,-153.0,0.00023245,2]
[381608161,1756295500000,-153.0,0.00023245,2]
[381608162,1756295500010,-209.40437684,0.00023265,2]
[381608163,1756295500021,-973.0,0.00023266,2]
[381608164,1756295500030,-178.26544843,0.00023266,2]
[381608165,1756295500041,-500.0,0.00023266,2]
[381608166,1756295500050,-684.41567228,0.00023268,2]
[381608167,1756295500060,-1500.0,0.00023268,2]
[381608168,1756295500070,-1500.0,0.00023268,2]
[381608169,1756295500079,-161.64318891,0.00023268,2]
[381608170,1756295500089,-350.0,0.00023268,2]
[381608171,1756295500098,-1500.0,0.00023268,2]
[381608172,1756295500108,-728.82,0.00023287,2]
[381608173,1756295500118,-1786.79,0.00023287,2]
[381608174,1756295500127,-480.0,0.00023287,2]
[381608175,1756295500136,-480.0,0.00023287,2]
[381608176,1756295500145,-480.0,0.00023287,2]
[381608177,1756295500155,-334.83920429,0.00023287,2]
[381608178,1756295500164,-480.0,0.00023287,2]
[381608179,1756295500173,-2132.63,0.00023287,2]
[381608180,1756295500182,-567.43,0.00023287,2]
[381608181,1756295500192,-480.0,0.00023287,2]
[381608182,1756295500201,-480.0,0.00023287,2]
[381608183,1756295500211,-480.0,0.00023287,2]
[381608184,1756295500220,-480.0,0.00023287,2]
[381608185,1756295500229,-599.6,0.00023287,2]
[381608186,1756295500238,-480.0,0.00023287,2]
[381608187,1756295500248,-480.0,0.00023287,2]
[381608188,1756295500259,-480.0,0.00023287,2]
[381608189,1756295500268,-375.18627858,0.00023287,2]
[381608190,1756295500277,-555.01,0.00023287,2]
[381608191,1756295500286,-480.0,0.00023287,2]
[381608192,1756295500295,-480.0,0.00023287,2]
[381608193,1756295500304,-480.0,0.00023287,2]
[381608194,1756295500313,-480.0,0.00023287,2]
[381608195,1756295500322,-480.0,0.00023287,2]
[381608196,1756295500332,-480.0,0.00023287,2]
[381608197,1756295500341,-480.0,0.00023287,2]
[381608198,1756295500350,-608.26,0.00023287,2]
[381608199,1756295500359,-480.0,0.00023287,2]
[381608200,1756295500369,-788.63,0.00023287,2]
[381608201,1756295500378,-733.12,0.00023287,2]
[381608202,1756295500387,-491.85,0.00023287,2]
[381608203,1756295500396,-523.6,0.00023287,2]
[381608204,1756295500406,-4246.52,0.00023287,2]
[381608205,1756295500415,-598.52,0.00023287,2]
[381608206,1756295500424,-972.86,0.00023287,2]
[381608207,1756295500435,-568.62,0.00023287,2]
[381608208,1756295500445,-480.0,0.00023287,2]
[381608209,1756295500454,-480.0,0.00023287,2]
[381608210,1756295500464,-480.0,0.00023287,2]
[381608211,1756295500473,-480.0,0.00023287,2]
[381608212,1756295500483,-480.0,0.00023287,2]
[381608213,1756295500492,-578.3681343,0.00023287,2]
[381608214,1756295500502,-573.08,0.00023287,2]
[381608215,1756295500511,-543.52,0.00023287,2]
[381608216,1756295500521,-506.41,0.00023287,2]
[381608217,1756295500530,-480.0,0.00023287,2]
[381608218,1756295500540,-556.45,0.00023287,2]
[381608219,1756295500550,-480.0,0.00023287,2]
[381608220,1756295500560,-705.68,0.00023287,2]
[381608221,1756295500569,-480.0,0.00023287,2]
[381608222,1756295500579,-480.0,0.00023287,2]
[381608223,1756295500589,-480.0,0.00023287,2]
[381608224,1756295500598,-743.34,0.00023287,2]
[381608225,1756295500607,-480.0,0.00023287,2]
[381608226,1756295500616,-614.77,0.00023287,2]
[381608227,1756295500625,-157.83048867,0.00023287,2]
[381608228,1756295500635,-480.0,0.00023287,2]
[381608229,1756295500644,-480.0,0.00023287,2]
[381608230,1756295500653,-480.0,0.00023287,2]
[381608231,1756295500662,-480.0,0.00023287,2]
[381608232,1756295500672,-480.0,0.00023287,2]
[381608233,1756295500682,-1174.5,0.00023287,2]
[381608234,1756295500691,-480.0,0.00023287,2]
[381608235,1756295500700,-480.0,0.00023287,2]
[381608236,1756295500710,-480.0,0.00023287,2]
[381608237,1756295500720,-480.0,0.00023287,2]
[381608238,1756295500730,-480.0,0.00023287,2]
[381608239,1756295500739,-824.65,0.00023287,2]
[381608240,1756295500751,-480.0,0.00023287,2]
[381608241,1756295500760,-480.0,0.00023287,2]
[381608242,1756295500770,-480.0,0.00023287,2]
[381608243,1756295500780,-897.27,0.00023287,2]
[381608244,1756295500790,-771.07,0.00023287,2]
[381608245,1756295500799,-480.0,0.00023287,2]
[381608246,1756295500808,-480.0,0.00023287,2]
[381608247,1756295500818,-480.0,0.00023287,2]
[381608248,1756295500828,-504.69,0.00023287,2]
[381608249,1756295500838,-1094.25,0.00023287,2]
[381608250,1756295500849,-480.0,0.00023287,2]
[381608251,1756295500860,-480.0,0.00023287,2]
[381608252,1756295500869,-480.0,0.00023287,2]
[381608253,1756295500879,-480.0,0.00023287,2]
[381608254,1756295500888,-1176.51,0.00023287,2]
[381608255,1756295500901,-833.03,0.00023287,2]
[381608256,1756295500911,-480.0,0.00023287,2]
[381608257,1756295500920,-483.29,0.00023287,2]
[381608258,1756295500930,-480.0,0.00023287,2]
[381608259,1756295500939,-650.46,0.00023287,2]
[381608260,1756295500949,-536.02,0.00023287,2]
[381608261,1756295500959,-480.0,0.00023287,2]
[381608262,1756295500969,-2316.32,0.00023287,2]
[381608263,1756295500981,-480.0,0.00023287,2]
[381608264,1756295500991,-480.0,0.00023287,2]
[381608265,1756295501000,-633.07,0.00023287,2]
[381608266,1756295501010,-480.0,0.00023287,2]
[381608267,1756295501020,-480.0,0.00023287,2]
[381608268,1756295501029,-480.0,0.00023287,2]
[381608269,1756295501039,-480.0,0.00023287,2]
[381608270,1756295501048,-617.59,0.00023287,2]
[381608271,1756295501057,-692.43,0.00023287,2]
[381608272,1756295501067,-480.0,0.00023287,2]
[381608273,1756295501077,-518.17,0.00023287,2]
[381608274,1756295501086,-604.0,0.00023287,2]
[381608275,1756295501096,-500.09,0.00023287,2]
[381608276,1756295501105,-480.0,0.00023287,2]
[381608277,1756295501114,-480.0,0.00023287,2]
[381608278,1756295501123,-480.0,0.00023287,2]
[381608279,1756295501134,-480.0,0.00023287,2]
[381608280,1756295501143,-480.0,0.00023287,2]
[381608281,1756295501153,-480.0,0.00023287,2]
[381608282,1756295501162,-603.45,0.00023287,2]
[381608283,1756295501171,-480.0,0.00023287,2]
[381608284,1756295501180,-562.00450224,0.00023287,2]
[381608285,1756295501190,-480.0,0.00023287,2]
[381608286,1756295501198,-480.0,0.00023287,2]
[381608287,1756295501208,-525.14,0.00023287,2]
[381608288,1756295501218,-480.0,0.00023287,2]
[381608289,1756295501227,-546.45,0.00023287,2]
[381608290,1756295501236,-480.0,0.00023287,2]
[381608291,1756295501246,-480.0,0.00023287,2]
[381608292,1756295501255,-495.46,0.00023287,2]
[381608293,1756295501264,-494.23,0.00023287,2]
[381608294,1756295501273,-480.0,0.00023287,2]
[381608295,1756295501282,-480.0,0.00023287,2]
[381608296,1756295501292,-752.07,0.00023287,2]
[381608297,1756295501302,-522.4,0.00023287,2]
[381608298,1756295501311,-480.0,0.00023287,2]
[381608299,1756295501321,-480.0,0.00023287,2]
[381608300,1756295501330,-1143.26,0.00023287,2]
[381608301,1756295501339,-698.99,0.00023287,2]
[381608302,1756295501348,-606.55,0.00023287,2]
[381608303,1756295501358,-480.0,0.00023287,2]
[381608304,1756295501367,-755.57,0.00023287,2]
[381608305,1756295501377,-740.17,0.00023287,2]
[381608306,1756295501386,-480.0,0.00023287,2]
[381608307,1756295501396,-839.06,0.00023287,2]
[381608308,1756295501406,-558.04,0.00023287,2]
[381608309,1756295501415,-480.0,0.00023287,2]
[381608310,1756295501424,-480.0,0.00023287,2]
[381608311,1756295501434,-480.0,0.00023287,2]
[381608312,1756295501443,-576.43,0.00023287,2]
[381608313,1756295501452,-480.0,0.00023287,2]
[381608314,1756295501462,-527.26,0.00023287,2]
[381608315,1756295501471,-564.31,0.00023287,2]
[381608316,1756295501480,-525.48,0.00023287,2]
[381608317,1756295501490,-480.0,0.00023287,2]
[381608318,1756295501499,-480.0,0.00023287,2]
[381608319,1756295501508,-480.0,0.00023287,2]
[381608320,1756295501517,-706.22,0.00023287,2]
[381608321,1756295501526,-480.0,0.00023287,2]
[381608322,1756295501535,-480.0,0.00023287,2]
[381608323,1756295501545,-550.82,0.00023287,2]
[381608324,1756295501554,-926.56,0.00023287,2]
[381608325,1756295501564,-924.56,0.00023287,2]
[381608326,1756295501573,-480.0,0.00023287,2]
[381608327,1756295501583,-480.0,0.00023287,2]
[381608328,1756295501591,-625.16,0.00023287,2]
[381608329,1756295501601,-480.0,0.00023287,2]
[381608330,1756295501610,-480.0,0.00023287,2]
[381608331,1756295501619,-480.0,0.00023287,2]
[381608332,1756295501628,-480.0,0.00023287,2]
[381608333,1756295501638,-613.93,0.00023287,2]
[381608334,1756295501647,-480.0,0.00023287,2]
[381608335,1756295501657,-480.0,0.00023287,2]
[381608336,1756295501667,-480.0,0.00023287,2]
[381608337,1756295501676,-480.0,0.00023287,2]
[381608338,1756295501685,-480.0,0.00023287,2]
[381608339,1756295501695,-732.55,0.00023287,2]
[381608340,1756295501705,-480.0,0.00023287,2]
[381608341,1756295501715,-480.0,0.00023287,2]
[381608342,1756295501724,-480.0,0.00023287,2]
[381608343,1756295501734,-480.0,0.00023287,2]
[381608344,1756295501744,-480.0,0.00023287,2]
[381608345,1756295501754,-502.03,0.00023287,2]
[381608346,1756295501763,-9670.89,0.00023287,2]
[381608347,1756295501773,-513.59,0.00023287,2]
[381608348,1756295501782,-480.0,0.00023287,2]
[381608349,1756295501791,-524.29,0.00023287,2]
[381608350,1756295501801,-1383.3,0.00023287,2]
[381608351,1756295501810,-480.0,0.00023287,2]
[381608352,1756295501820,-500.0,0.00023287,2]
[381608353,1756295501829,-480.0,0.00023287,2]
[381608354,1756295501838,-655.08,0.00023287,2]
[381608355,1756295501849,-480.0,0.00023287,2]
[381608356,1756295501859,-480.0,0.00023287,2]
[381608357,1756295501868,-480.0,0.00023287,2]
[381608358,1756295501878,-480.0,0.00023287,2]
[381608359,1756295501886,-480.0,0.00023287,2]
[381608360,1756295501896,-480.0,0.00023287,2]
[381608361,1756295501904,-480.0,0.00023287,2]
[381608362,1756295501913,-665.82,0.00023287,2]
[381608363,1756295501922,-480.0,0.00023287,2]
[381608364,1756295501933,-480.0,0.00023287,2]
[381608365,1756295501942,-480.0,0.00023287,2]
[381608366,1756295501952,-480.0,0.00023287,2]
[381608367,1756295501961,-480.0,0.00023287,2]
[381608368,1756295501970,-236.74903628,0.00023287,2]
[381608369,1756295501979,-480.0,0.00023287,2]
[381608370,1756295501990,-737.63,0.00023287,2]
[381608371,1756295501999,-480.0,0.00023287,2]
[381608372,1756295502008,-301.59797681,0.00023287,2]
[381608373,1756295502018,-1275.55,0.00023287,2]
[381608374,1756295502027,-941.67,0.00023287,2]
[381608375,1756295502036,-480.0,0.00023287,2]
[381608376,1756295502045,-527.84,0.00023287,2]
[381608377,1756295502054,-1377.54,0.00023287,2]
[381608378,1756295502064,-480.0,0.00023287,2]
[381608379,1756295502074,-480.0,0.00023287,2]
[381608380,1756295502083,-544.18,0.00023287,2]
[381608381,1756295502093,-2005.67,0.00023287,2]
[381608382,1756295502102,-605.81,0.00023287,2]
[381608383,1756295502111,-480.0,0.00023287,2]
[381608384,1756295502120,-480.0,0.00023287,2]
[381608385,1756295502129,-486.23,0.00023287,2]
[381608386,1756295502139,-480.0,0.00023287,2]
[381608387,1756295502149,-480.0,0.00023287,2]
[381608388,1756295502158,-572.5,0.00023287,2]
[381608389,1756295502168,-1511.66,0.00023287,2]
[381608390,1756295502177,-1734.3,0.00023287,2]
[381608391,1756295502187,-3755.94,0.00023287,2]
[381608392,1756295502198,-480.0,0.00023287,2]
[381608393,1756295502207,-831.34,0.00023287,2]
[381608394,1756295502216,-480.0,0.00023287,2]
[381608395,1756295502225,-480.0,0.00023287,2]
[381608396,1756295502235,-707.25,0.00023287,2]
[381608397,1756295502245,-151.61973375,0.00023287,2]
[381608398,1756295502254,-2885.3,0.00023287,2]
[381608399,1756295502263,-480.0,0.00023287,2]
[381608400,1756295502273,-480.0,0.00023287,2]
[381608401,1756295502282,-667.09,0.00023287,2]
[381608402,1756295502292,-480.0,0.00023287,2]
[381608403,1756295502302,-202.43431876,0.00023287,2]
[381608404,1756295502311,-480.0,0.00023287,2]
[381608405,1756295502320,-1275.32,0.00023287,2]
[381608406,1756295502330,-480.0,0.00023287,2]
[381608407,1756295502339,-562.26,0.00023287,2]
[381608408,1756295502348,-489.14,0.00023287,2]
[381608409,1756295502357,-3844.16,0.00023287,2]
[381608410,1756295502367,-480.0,0.00023287,2]
[381608411,1756295502376,-1682.7,0.00023287,2]
[381608412,1756295502386,-1992.53,0.00023287,2]
[381608413,1756295502395,-480.0,0.00023287,2]
[381608414,1756295502405,-480.0,0.00023287,2]
[381608415,1756295502414,-1281.38,0.00023287,2]
[381608416,1756295502423,-480.0,0.00023287,2]
[381608417,1756295502434,-480.0,0.00023287,2]
[381608418,1756295502443,-480.0,0.00023287,2]
[381608419,1756295502452,-833.25,0.00023287,2]
[381608420,1756295502462,-480.0,0.00023287,2]
[381608421,1756295502471,-480.0,0.00023287,2]
[381608422,1756295502480,-480.0,0.00023287,2]
[381608423,1756295502490,-480.0,0.00023287,2]
[381608424,1756295502499,-480.0,0.00023287,2]
[381608425,1756295502508,-480.0,0.00023287,2]
[381608426,1756295502517,-480.0,0.00023287,2]
[381608427,1756295502527,-480.0,0.00023287,2]
[381608428,1756295502687,-480.0,0.00023287,2]
[381608429,1756295502698,-480.0,0.00023287,2]
[381608430,1756295502708,-480.0,0.00023287,2]
[381608431,1756295502717,-480.0,0.00023287,2]
[381608432,1756295502726,-480.0,0.00023287,2]
[381608433,1756295502735,-480.0,0.00023287,2]
[381608434,1756295502745,-824.64,0.00023287,2]
[381608435,1756295502754,-1267.55,0.00023287,2]
[381608436,1756295502764,-1138.38,0.00023287,2]
[381608437,1756295502774,-934.3,0.00023287,2]
[381608438,1756295502783,-480.0,0.00023287,2]
[381608439,1756295502793,-495.31,0.00023287,2]
[381608440,1756295502803,-480.0,0.00023287,2]
[381608441,1756295502812,-480.0,0.00023287,2]
[381608442,1756295502822,-776.73,0.00023287,2]
[381608443,1756295502831,-480.0,0.00023287,2]
[381608444,1756295502841,-480.0,0.00023287,2]
[381608445,1756295502852,-480.0,0.00023287,2]
[381608446,1756295502861,-480.0,0.00023287,2]
[381608447,1756295502870,-480.0,0.00023287,2]
[381608448,1756295502879,-557.28,0.00023287,2]
[381608449,1756295502889,-535.56,0.00023287,2]
[381608450,1756295502898,-480.0,0.00023287,2]
[381608451,1756295502907,-480.0,0.00023287,2]
[381608452,1756295502916,-639.28,0.00023287,2]
[381608453,1756295502926,-480.0,0.00023287,2]
[381608454,1756295502935,-480.0,0.00023287,2]
[381608455,1756295502945,-480.0,0.00023287,2]
[381608456,1756295502954,-1717.2,0.00023287,2]
[381608457,1756295502964,-480.0,0.00023287,2]
[381608458,1756295502973,-2626.17,0.00023287,2]
[381608459,1756295502983,-480.0,0.00023287,2]
[381608460,1756295502992,-932.54,0.00023287,2]
[381608461,1756295503001,-484.63,0.00023287,2]
[381608462,1756295503011,-717.77,0.00023287,2]
[381608463,1756295503020,-1227.94,0.00023287,2]
[381608464,1756295503030,-607.71,0.00023287,2]
[381608465,1756295503039,-480.0,0.00023287,2]
[381608466,1756295503049,-5360.08,0.00023287,2]
[381608467,1756295503060,-636.41,0.00023287,2]
[381608468,1756295503069,-7837.73,0.00023287,2]
[381608469,1756295503079,-480.0,0.00023287,2]
[381608470,1756295503088,-525.03,0.00023287,2]
[381608471,1756295503100,-784.27,0.00023287,2]
[381608472,1756295503110,-974.32,0.00023287,2]
[381608473,1756295503119,-480.0,0.00023287,2]
[381608474,1756295503129,-480.0,0.00023287,2]
[381608475,1756295503139,-480.0,0.00023287,2]
[381608476,1756295503149,-2604.37,0.00023287,2]
[381608477,1756295503159,-586.02,0.00023287,2]
[381608478,1756295503168,-480.0,0.00023287,2]
[381608479,1756295503178,-480.0,0.00023287,2]
[381608480,1756295503187,-480.0,0.00023287,2]
[381608481,1756295503197,-480.0,0.00023287,2]
[381608482,1756295503207,-486.44,0.00023287,2]
[381608483,1756295503217,-480.0,0.00023287,2]
[381608484,1756295503227,-1424.05,0.00023287,2]
[381608485,1756295503237,-480.0,0.00023287,2]
[381608486,1756295503247,-480.0,0.00023287,2]
[381608487,1756295503256,-850.03,0.00023287,2]
[381608488,1756295503266,-480.0,0.00023287,2]
[381608489,1756295503276,-480.0,0.00023287,2]
[381608490,1756295503286,-480.0,0.00023287,2]